bitfinex-derivatives/quotes_BTCF0:USTF0_20260315
["timestamp","ask_amount","ask_price","bid_price","bid_amount"]
[1773551933323,0.0014,71795.0,71784.0,0.12676613]
[1773551933528,0.0014,71795.0,71777.0,0.08498113]
[1773551933721,0.0014,71795.0,71776.0,0.0014]
[1773551933722,0.0014,71794.0,71783.0,0.08498113]
[1773551933920,0.0014,71793.0,71783.0,0.08498113]
[1773551935516,0.041779,71795.0,71783.0,0.08498113]
[1773551935731,0.0014,71794.0,71783.0,0.08498113]
[1773551937225,0.0014,71794.0,71784.0,0.041785]
[1773551937427,0.0014,71793.0,71786.0,0.08498113]
[1773551937631,0.041777,71798.0,71786.0,0.08498113]
[1773551937830,0.0014,71797.0,71786.0,0.08498113]
[1773551938028,0.0014,71796.0,71786.0,0.08498113]
[1773551938734,0.043179,71796.0,71786.0,0.08498113]
[1773551939824,0.0014,71796.0,71786.0,0.08498113]
[1773551940423,0.041779,71795.0,71786.0,0.08498113]
[1773551940733,0.0014,71796.0,71776.0,0.0014]
[1773551940939,0.041783,71789.0,71769.0,0.08498113]
[1773551941232,0.0014,71788.0,71769.0,0.08498113]
[1773551941730,0.0014,71788.0,71776.0,0.08498113]
[1773551942041,0.041788,71779.0,71765.0,0.08498113]
[1773551942220,0.041794,71770.0,71751.0,0.0014]
[1773551942425,0.041793,71770.0,71760.0,0.08498113]
[1773551942624,0.0014,71773.0,71750.0,0.08498113]
[1773551942932,0.0014,71773.0,71731.0,0.00069705]
[1773551942933,0.08812099,71773.0,71746.0,0.08498113]
[1773551943132,0.041797,71764.0,71750.0,0.12678613]
[1773551943437,0.0014,71763.0,71752.0,0.041803]
[1773551943628,0.0014,71763.0,71751.0,0.08598113]
[1773551943820,0.043198,71763.0,71751.0,0.001]
[1773551944022,0.041799,71761.0,71751.0,0.001]
[1773551944231,0.041799,71761.0,71746.0,0.08498113]
[1773551944627,0.0418,71759.0,71746.0,0.08498113]
[1773551944831,0.08812099,71763.0,71739.0,0.08498113]
[1773551945029,0.08812099,71763.0,71737.0,0.0014]
[1773551945030,0.08812099,71763.0,71741.0,0.08498113]
[1773551945227,0.041801,71757.0,71741.0,0.08498113]
[1773551946538,0.041801,71758.0,71742.0,0.08498113]
[1773551946940,0.08812099,71763.0,71742.0,0.08498113]
[1773551947636,0.041802,71756.0,71742.0,0.08498113]
[1773551947836,0.0014,71755.0,71742.0,0.08498113]
[1773551948038,0.041805,71751.0,71742.0,0.08498113]
[1773551948334,0.043205,71751.0,71736.0,0.08498113]
[1773551948739,0.12088277,71769.0,71736.0,0.08498113]
[1773551948740,0.08672099,71768.0,71736.0,0.08498113]
[1773551948936,0.08672099,71766.0,71741.0,0.08498113]
[1773551949533,0.041802,71755.0,71741.0,0.08498113]
[1773551949736,0.041803,71753.0,71741.0,0.08498113]
[1773551950039,0.0014,71752.0,71741.0,0.08498113]
[1773551950537,0.0014,71751.0,71741.0,0.08498113]
[1773551951541,0.041799,71762.0,71734.0,0.08498113]
[1773551951845,0.0014,71761.0,71734.0,0.08498113]
[1773551952141,0.08672099,71765.0,71743.0,0.08498113]
[1773551952528,0.0014,71764.0,71743.0,0.08498113]
[1773551952730,0.041801,71757.0,71743.0,0.08498113]
[1773551952938,0.0014,71756.0,71743.0,0.08498113]
[1773551953541,0.043202,71756.0,71743.0,0.08498113]
[1773551953741,0.043202,71756.0,71741.0,0.04181]
[1773551954246,0.043202,71756.0,71742.0,0.08498113]
[1773551954626,0.043202,71756.0,71742.0,0.12679013]
[1773551955143,0.0014,71756.0,71743.0,0.041809]
[1773551956233,0.0014,71756.0,71743.0,0.12679013]
[1773551956435,0.0014,71756.0,71743.0,0.08498113]
[1773551956645,0.0014,71755.0,71743.0,0.08498113]
[1773551956845,0.0014,71754.0,71745.0,0.041808]
[1773551957041,0.0014,71754.0,71746.0,0.08498113]
[1773551958737,0.0014,71753.0,71746.0,0.08498113]
[1773551959442,0.0014,71752.0,71746.0,0.08498113]
[1773551959639,0.041801,71757.0,71746.0,0.08498113]
[1773551959849,0.0014,71756.0,71746.0,0.08498113]
[1773551960142,0.0014,71756.0,71742.0,0.08498113]
[1773551960949,0.041803,71755.0,71742.0,0.08498113]
[1773551962547,0.0014,71756.0,71746.0,0.08446838]
[1773551963348,0.0014,71770.0,71753.0,0.08446838]
[1773551963647,0.11717985,71777.0,71748.0,0.08446838]
[1773551963840,0.0014,71776.0,71750.0,0.08446838]
[1773551964238,0.08685608,71782.0,71750.0,0.08446838]
[1773551964445,0.0014,71781.0,71750.0,0.08446838]
[1773551964646,0.08825608,71781.0,71750.0,0.08446838]
[1773551964847,0.041794,71769.0,71755.0,0.041802]
[1773551965041,0.0014,71768.0,71756.0,0.08446838]
[1773551965950,0.0014,71768.0,71756.0,0.12626938]
[1773551966152,0.041794,71769.0,71757.0,0.08446838]
[1773551966348,0.0014,71768.0,71757.0,0.08446838]
[1773551968554,0.041796,71767.0,71750.0,0.12627338]
[1773551968848,0.041797,71764.0,71751.0,0.08446838]
[1773551969054,0.041797,71764.0,71751.0,0.12627238]
[1773551969256,0.041797,71764.0,71752.0,0.08446838]
[1773551969643,0.043197,71764.0,71752.0,0.08446838]
[1773551970052,0.041797,71764.0,71752.0,0.08446838]
[1773551970356,0.0014,71763.0,71752.0,0.08446838]
[1773551970756,0.0014,71763.0,71752.0,0.12627138]
[1773551970958,0.0014,71763.0,71753.0,0.08446838]
[1773551971458,0.041781,71792.0,71755.0,0.08446838]
[1773551971647,0.0014,71794.0,71758.0,0.08446838]
[1773551971846,0.0014,71793.0,71781.0,0.08446838]
[1773551972250,0.041781,71792.0,71781.0,0.08446838]
[1773551972649,0.041782,71790.0,71781.0,0.08446838]
[1773551972856,0.23017156,71789.0,71773.0,0.08446838]
[1773551973047,0.23017156,71788.0,71774.0,0.08446838]
[1773551973250,0.23017156,71787.0,71774.0,0.08446838]
[1773551973451,0.23017156,71786.0,71774.0,0.08446838]
[1773551973659,0.0024,71793.0,71767.0,0.08446838]
[1773551973660,0.23017156,71785.0,71767.0,0.08446838]
[1773551973847,0.20333227,71784.0,71770.0,0.08446838]
[1773551974045,0.0014,71783.0,71775.0,0.08446838]
[1773551974251,0.0014,71782.0,71775.0,0.08446838]
[1773551974557,0.043186,71783.0,71775.0,0.08446838]
[1773551974953,0.041786,71783.0,71775.0,0.08446838]
[1773551975158,0.041789,71777.0,71767.0,0.08586838]
[1773551975361,0.08825608,71783.0,71761.0,0.08446838]
[1773551976053,0.0014,71783.0,71761.0,0.08446838]
[1773551976454,0.041793,71771.0,71761.0,0.08446838]
[1773551976755,0.041794,71770.0,71761.0,0.08446838]
[1773551977066,0.08685608,71770.0,71747.0,0.08446838]
[1773551977249,0.041798,71762.0,71750.0,0.08446838]
[1773551977649,0.041795,71768.0,71750.0,0.08446838]
[1773551977854,0.08685608,71770.0,71750.0,0.08446838]
[1773551978451,0.08685608,71770.0,71745.0,0.08446838]
[1773551979853,0.0418,71759.0,71745.0,0.08446838]
[1773551980161,0.0432,71759.0,71745.0,0.08446838]
[1773551980660,0.0432,71759.0,71746.0,0.08446838]
[1773551982253,0.041801,71758.0,71746.0,0.08446838]
[1773551983060,0.0014,71759.0,71746.0,0.08446838]
[1773551983256,0.041801,71757.0,71746.0,0.08446838]
[1773551983458,0.0014,71759.0,71746.0,0.08446838]
[1773551984465,0.0432,71758.0,71746.0,0.08446838]
[1773551985056,0.0014,71758.0,71746.0,0.08446838]
[1773551985557,0.11838191,71774.0,71747.0,0.041807]
[1773551985754,0.041798,71762.0,71748.0,0.08446838]
[1773551985953,0.25548857,71761.0,71748.0,0.08446838]
[1773551986264,0.01676392,71760.0,71742.0,0.08446838]
[1773551986454,0.0014,71762.0,71742.0,0.08446838]
[1773551986761,0.0014,71762.0,71747.0,0.08446838]
[1773551986963,0.0014,71762.0,71749.0,0.08446838]
[1773551987864,0.0014,71762.0,71748.0,0.0014]
[1773551988060,0.0014,71762.0,71748.0,0.08586838]
[1773551988252,0.043198,71762.0,71749.0,0.08446838]
[1773551988562,0.041799,71761.0,71749.0,0.08446838]
[1773551990258,0.0014,71762.0,71749.0,0.08446838]
[1773551990763,0.0014,71762.0,71749.0,0.08286838]
[1773551991563,0.043198,71763.0,71750.0,0.08973436]
[1773551993166,0.043198,71763.0,71751.0,0.08973436]
[1773551994367,0.041798,71763.0,71751.0,0.08973436]
[1773551994568,0.043198,71763.0,71751.0,0.08973436]
[1773551995069,0.0014,71767.0,71758.0,0.08973436]
[1773551995368,0.041794,71769.0,71758.0,0.08973436]
[1773551996065,0.0014,71770.0,71755.0,0.0014]
[1773551996467,0.041796,71766.0,71750.0,0.08973436]
[1773551996964,0.041796,71766.0,71754.0,0.041802]
[1773551998266,0.24411468,71765.0,71754.0,0.041802]
[1773551998467,0.24411468,71764.0,71754.0,0.041802]
[1773551998664,0.24411468,71763.0,71754.0,0.041802]
[1773551998963,0.24411468,71763.0,71731.0,0.00069705]
[1773551998964,0.08625772,71761.0,71731.0,0.00069705]
[1773551999270,0.041809,71743.0,71729.0,0.0014]
[1773551999459,0.041794,71769.0,71731.0,0.041816]
[1773551999460,0.22170753,71742.0,71731.0,0.041816]
[1773551999766,0.041809,71744.0,71732.0,0.08973436]
[1773552000569,0.041808,71746.0,71732.0,0.08973436]
[1773552000770,0.0014,71747.0,71732.0,0.08973436]
[1773552001468,0.0014,71747.0,71729.0,0.0014]
[1773552001767,0.041812,71739.0,71728.0,0.0014]
[1773552001965,0.041811,71741.0,71728.0,0.0014]
[1773552002162,0.041809,71743.0,71728.0,0.08973436]
[1773552002359,0.08625772,71761.0,71732.0,0.08973436]
[1773552002567,0.08625772,71756.0,71732.0,0.08973436]
[1773552002873,0.041808,71745.0,71727.0,0.0014]
[1773552003070,0.043208,71745.0,71728.0,0.08973436]
[1773552003366,0.043208,71745.0,71733.0,0.041815]
[1773552003564,0.041805,71750.0,71728.0,0.08936049]
[1773552003767,0.043206,71749.0,71735.0,0.041813]
[1773552003970,0.0014,71748.0,71735.0,0.041813]
[1773552004560,0.0014,71748.0,71736.0,0.041813]
[1773552004756,0.043207,71748.0,71735.0,0.08856558]
[1773552005170,0.041807,71748.0,71735.0,0.08856558]
[1773552005559,0.08625772,71765.0,71743.0,0.041809]
[1773552005763,0.08765772,71765.0,71743.0,0.08973436]
[1773552005963,0.041803,71753.0,71743.0,0.08973436]
[1773552006566,0.0014,71760.0,71743.0,0.08973436]
[1773552006767,0.00836644,71758.0,71743.0,0.08973436]
[1773552008065,0.041802,71756.0,71743.0,0.08973436]
[1773552008269,0.05016744,71758.0,71742.0,0.08973436]
[1773552008468,0.041801,71758.0,71742.0,0.08973436]
[1773552008670,0.041799,71761.0,71747.0,0.08973436]
[1773552008866,0.041799,71761.0,71745.0,0.041807]
[1773552009061,0.08625772,71753.0,71725.0,7e-07]
[1773552009270,0.041814,71736.0,71725.0,7e-07]
[1773552009472,0.041812,71738.0,71726.0,0.0014]
[1773552009668,0.08765772,71742.0,71726.0,0.0014]
[1773552009966,0.041814,71734.0,71726.0,0.0014]
[1773552010168,0.041813,71737.0,71726.0,0.0014]
[1773552010373,0.00016242,71733.0,71726.0,0.0014]
[1773552011477,0.22969521,71732.0,71726.0,0.0014]
[1773552011679,0.22969521,71731.0,71726.0,0.0014]
[1773552011869,0.00016242,71733.0,71726.0,0.0014]
[1773552011870,0.22969521,71730.0,71726.0,0.0014]
[1773552012071,0.22969521,71729.0,71726.0,0.0014]
[1773552012270,0.22986017,71728.0,71726.0,0.0014]
[1773552012471,0.22149095,71727.0,71726.0,0.0014]
[1773552013181,0.22149095,71727.0,71724.0,0.0014]
[1773552013367,0.08765772,71742.0,71726.0,0.001]
[1773552013675,0.01673566,71736.0,71727.0,0.08973436]
[1773552013871,0.01673566,71736.0,71726.0,0.001]
[1773552015276,0.05854966,71736.0,71726.0,0.001]
[1773552015476,0.05854966,71736.0,71724.0,0.0014]
[1773552015879,0.01673566,71736.0,71725.0,0.041819]
[1773552016978,0.01673566,71736.0,71724.0,0.0014]
[1773552018180,0.08625772,71754.0,71736.0,0.041813]
[1773552018476,0.08625772,71754.0,71736.0,0.0014]
[1773552018784,0.041807,71747.0,71736.0,0.0014]
[1773552018973,0.0014,71753.0,71736.0,0.0014]
[1773552019374,0.041807,71748.0,71736.0,0.09113436]
[1773552020184,0.08625772,71759.0,71737.0,0.08973436]
[1773552020371,0.0014,71758.0,71737.0,0.08973436]
[1773552020578,0.08625772,71758.0,71737.0,0.08973436]
[1773552020881,0.0014,71757.0,71737.0,0.08973436]
[1773552021080,0.001,71753.0,71737.0,0.08973436]
[1773552021581,0.001,71753.0,71741.0,0.08657053]
[1773552021780,0.041803,71754.0,71741.0,0.08657053]
[1773552021975,0.041803,71754.0,71741.0,0.12838053]
[1773552022279,0.041802,71756.0,71743.0,0.041809]
[1773552022468,0.041801,71758.0,71744.0,0.08797053]
[1773552023285,0.041801,71758.0,71744.0,0.12977853]
[1773552023488,0.041801,71757.0,71744.0,0.08797053]
[1773552023678,0.041804,71752.0,71744.0,0.0014]
[1773552023873,0.08313076,71750.0,71704.0,0.08657053]
[1773552024078,0.041813,71738.0,71724.0,0.08657053]
[1773552024278,0.041813,71738.0,71726.0,0.08657053]
[1773552024481,0.22672767,71737.0,71726.0,0.08657053]
[1773552024684,0.22672767,71736.0,71726.0,0.08657053]
[1773552024880,0.22672767,71735.0,71726.0,0.08657053]
[1773552025077,0.22672767,71734.0,71726.0,0.08657053]
[1773552025275,0.22672767,71733.0,71726.0,0.08657053]
[1773552025480,0.041811,71740.0,71726.0,0.08657053]
[1773552026279,0.04181,71742.0,71727.0,0.12838853]
[1773552026476,0.041811,71741.0,71729.0,0.08657053]
[1773552026787,0.041811,71741.0,71726.0,0.041819]
[1773552027089,0.041811,71740.0,71726.0,0.041819]
[1773552028790,0.041811,71740.0,71725.0,0.08797053]
[1773552029189,0.08313076,71753.0,71726.0,0.08657053]
[1773552029386,0.0014,71752.0,71726.0,0.08657053]
[1773552029596,0.041808,71745.0,71730.0,0.08657053]
[1773552031489,0.041809,71744.0,71731.0,0.08657053]
[1773552031690,0.001,71745.0,71731.0,0.12838653]
[1773552031896,0.001,71745.0,71732.0,0.08797053]
[1773552032082,0.001,71745.0,71733.0,0.12978553]
[1773552032285,0.042808,71745.0,71734.0,0.0014]
[1773552033891,0.041808,71745.0,71734.0,0.0014]
[1773552036504,0.08313076,71749.0,71717.0,0.0014]
[1773552036505,0.08313076,71737.0,71717.0,0.0014]
[1773552036688,0.041815,71734.0,71720.0,0.041822]
[1773552036895,0.08313076,71749.0,71721.0,0.0014]
[1773552037107,0.041816,71732.0,71722.0,0.0014]
[1773552037297,0.041816,71732.0,71723.0,0.0014]
[1773552037496,0.21295513,71731.0,71714.0,0.08657053]
[1773552037796,0.041807,71748.0,71736.0,0.041813]
[1773552038000,0.041808,71745.0,71732.0,0.043215]
[1773552038502,0.041805,71750.0,71733.0,0.08657053]
[1773552038796,0.08313076,71753.0,71732.0,0.0014]
[1773552039102,0.08313076,71749.0,71733.0,0.0014]
[1773552039298,0.041808,71746.0,71734.0,0.0014]
[1773552043599,0.08313076,71753.0,71727.0,0.0014]
[1773552044103,0.041813,71737.0,71728.0,0.0014]
[1773552044502,0.041812,71739.0,71728.0,0.0014]
[1773552046395,0.08313076,71739.0,71725.0,0.04182]
[1773552046601,0.08313076,71739.0,71726.0,0.0014]
[1773552047906,0.04181,71742.0,71726.0,0.0014]
[1773552048306,0.08313076,71743.0,71726.0,0.0014]
[1773552048503,0.04181,71742.0,71726.0,0.0014]
[1773552049599,0.20671889,71741.0,71726.0,0.0014]
[1773552049797,0.08313076,71735.0,71726.0,0.0014]
[1773552049996,0.20671889,71734.0,71726.0,0.0014]
[1773552050394,0.29186532,71734.0,71703.0,0.153632]
[1773552050600,0.08514643,71728.0,71704.0,0.08672887]
[1773552050807,0.04182,71725.0,71704.0,0.08812887]
[1773552051006,0.29186532,71727.0,71704.0,0.08812887]
[1773552051007,0.24853989,71724.0,71704.0,0.08812887]
[1773552051202,0.24853989,71724.0,71710.0,0.041828]
[1773552051203,0.20671889,71723.0,71710.0,0.041828]
[1773552051409,0.20671889,71723.0,71709.0,0.041829]
[1773552051709,0.20665292,71722.0,71711.0,0.041827]
[1773552051908,0.041821,71724.0,71711.0,0.041827]
[1773552052810,0.12660667,71726.0,71712.0,0.041827]
[1773552053109,0.12660667,71726.0,71713.0,0.0014]
[1773552053308,0.12660667,71726.0,71713.0,0.043226]
[1773552053710,0.12660767,71725.0,71713.0,0.0014]
[1773552054402,0.04182,71725.0,71713.0,0.0014]
[1773552054609,0.08478767,71724.0,71713.0,0.043226]
[1773552058112,0.08478767,71724.0,71713.0,0.0014]
[1773552058419,0.08478767,71722.0,71713.0,0.0014]
[1773552059804,0.04182,71725.0,71713.0,0.0014]
[1773552060000,0.08478767,71732.0,71713.0,0.0014]
[1773552060307,0.08478767,71735.0,71713.0,0.09076434]
[1773552060507,0.041816,71732.0,71719.0,0.041823]
[1773552061406,0.041816,71732.0,71720.0,0.0014]
[1773552062808,0.08478767,71735.0,71720.0,0.0014]
[1773552063212,0.08478767,71735.0,71716.0,0.041824]
[1773552063412,0.08478767,71735.0,71717.0,0.0014]
[1773552063612,0.08478767,71733.0,71717.0,0.0014]
[1773552063815,0.08478767,71731.0,71717.0,0.0014]
[1773552064011,0.20233371,71730.0,71717.0,0.0014]
[1773552064313,0.28712138,71729.0,71718.0,0.041823]
[1773552064510,0.20233371,71728.0,71718.0,0.041823]
[1773552067917,0.08478767,71727.0,71717.0,0.0014]
[1773552068118,0.20233371,71726.0,71717.0,0.0014]
[1773552068319,0.28712138,71726.0,71717.0,0.043224]
[1773552068617,0.20233371,71725.0,71717.0,0.043224]
[1773552068818,0.20233371,71725.0,71717.0,0.0014]
[1773552069019,0.20233371,71724.0,71717.0,0.0014]
[1773552069221,0.20233371,71723.0,71717.0,0.0014]
[1773552069518,7.1e-07,71722.0,71717.0,0.0014]
[1773552069714,0.08478767,71727.0,71717.0,0.0014]
[1773552069923,0.08478767,71735.0,71718.0,0.041823]
[1773552072009,0.08478767,71731.0,71718.0,0.041823]
[1773552073920,0.08478767,71728.0,71717.0,0.043224]
[1773552074324,0.08478767,71723.0,71701.0,0.08936434]
[1773552074522,0.08478767,71725.0,71712.0,0.041827]
[1773552074720,0.041821,71724.0,71713.0,0.0014]
[1773552074919,0.08478767,71723.0,71714.0,0.0014]
[1773552076729,0.08478767,71723.0,71714.0,0.043226]
[1773552078529,0.08478767,71723.0,71715.0,0.041825]
[1773552080626,0.08478767,71723.0,71714.0,0.0014]
[1773552081433,0.19680017,71722.0,71714.0,0.0014]
[1773552081634,0.19680017,71721.0,71714.0,0.0014]
[1773552081835,0.19680017,71720.0,71714.0,0.0014]
[1773552082022,0.19680017,71719.0,71714.0,0.0014]
[1773552082228,0.19680017,71718.0,71714.0,0.0014]
[1773552082429,0.19680017,71717.0,71714.0,0.0014]
[1773552082735,0.08478767,71723.0,71714.0,3e-08]
[1773552082924,0.19679527,71722.0,71714.0,3e-08]
[1773552083124,0.19679527,71721.0,71715.0,0.041825]
[1773552083336,0.08438129,71719.0,71716.0,0.0014]
[1773552083529,0.28117656,71718.0,71717.0,0.0014]
[1773552084029,0.19679527,71718.0,71717.0,0.0014]
[1773552085129,0.19679527,71718.0,71717.0,0.0024]
[1773552086235,0.28117656,71718.0,71717.0,0.0014]
[1773552086623,0.28117656,71718.0,71717.0,0.0024]
[1773552087129,0.19679527,71718.0,71717.0,0.001]
[1773552087331,0.28117656,71718.0,71712.0,0.041827]
[1773552087629,0.28117656,71718.0,71700.0,0.05]
[1773552087630,0.19679527,71717.0,71711.0,0.041827]
[1773552087836,0.19679527,71716.0,71712.0,0.0014]
[1773552088034,0.08438129,71719.0,71713.0,0.0014]
[1773552088236,0.28115727,71718.0,71713.0,0.0014]
[1773552088439,0.19677598,71717.0,71713.0,0.0014]
[1773552088640,0.08438129,71718.0,71713.0,0.0014]
[1773552088945,0.19677222,71717.0,71713.0,0.0014]
[1773552089241,0.08438129,71718.0,71713.0,0.0014]
[1773552089446,0.19676885,71717.0,71714.0,0.0014]
[1773552089646,0.08438129,71718.0,71715.0,0.0014]
[1773552089829,0.19676885,71717.0,71716.0,0.0014]
[1773552090933,0.28115014,71717.0,71700.0,0.05]
[1773552091230,0.19676885,71716.0,71710.0,0.041828]
[1773552091434,0.19676885,71716.0,71710.0,0.01748467]
[1773552091630,0.08438129,71715.0,71711.0,0.0014]
[1773552091935,0.19676885,71714.0,71712.0,0.0014]
[1773552092138,0.19676885,71714.0,71713.0,0.0014]
[1773552092536,0.19676885,71714.0,71709.0,0.041829]
[1773552092840,8.5e-07,71713.0,71709.0,0.043229]
[1773552093033,0.08438129,71716.0,71709.0,0.043229]
[1773552093633,0.08438129,71716.0,71709.0,0.041829]
[1773552093837,0.08438129,71716.0,71710.0,0.0014]
[1773552094137,0.08438129,71721.0,71710.0,0.043228]
[1773552094343,0.08438129,71721.0,71712.0,0.042827]
[1773552095044,0.08438129,71721.0,71712.0,0.041827]
[1773552096337,0.08438129,71721.0,71710.0,0.043228]
[1773552098834,0.08438129,71735.0,71722.0,0.041821]
[1773552099039,0.08438129,71735.0,71723.0,0.0014]
[1773552099234,0.041815,71734.0,71723.0,0.0014]
[1773552099434,0.08438129,71733.0,71723.0,0.0014]
[1773552100339,0.08438129,71733.0,71725.0,0.041819]
[1773552101740,0.12619329,71738.0,71725.0,0.041819]
[1773552101944,0.041812,71738.0,71725.0,0.041819]
[1773552102143,0.08438129,71737.0,71725.0,0.041819]
[1773552103340,0.08438129,71746.0,71727.0,0.08750912]
[1773552103547,0.08438129,71746.0,71735.0,0.041814]
[1773552103748,0.08438129,71746.0,71736.0,0.0014]
[1773552106842,0.04969392,71746.0,71737.0,0.041813]
[1773552107347,0.08750912,71750.0,71725.0,0.0014]
[1773552107536,0.041813,71736.0,71723.0,0.041821]
[1773552107732,0.041813,71736.0,71720.0,0.08750912]
[1773552107733,0.08438129,71735.0,71722.0,0.041821]
[1773552107938,0.08438129,71732.0,71723.0,0.0014]
[1773552108146,0.08438129,71729.0,71723.0,0.0014]
[1773552108543,0.08438129,71729.0,71719.0,0.041823]
[1773552108743,0.08438129,71729.0,71720.0,0.0014]
[1773552110146,0.08438129,71729.0,71717.0,0.041824]
[1773552110347,0.08438129,71729.0,71718.0,0.0014]
[1773552110539,0.08438129,71729.0,71718.0,0.043223]
[1773552110741,0.08438129,71729.0,71719.0,0.0014]
[1773552111948,0.12619829,71729.0,71719.0,0.0014]
[1773552112154,0.08438129,71729.0,71719.0,0.0014]
[1773552112651,0.08438129,71729.0,71717.0,0.041824]
[1773552112837,0.08438129,71729.0,71718.0,0.043223]
[1773552113150,0.08438129,71729.0,71715.0,0.0014]
[1773552113351,0.08438129,71729.0,71716.0,0.0014]
[1773552113553,0.08438129,71729.0,71717.0,0.0014]
[1773552113751,0.08438129,71729.0,71718.0,0.0014]
[1773552113947,0.041819,71727.0,71719.0,0.0014]
[1773552114250,0.041819,71727.0,71720.0,0.0014]
[1773552115051,0.08092774,71726.0,71720.0,0.0014]
[1773552115252,0.041819,71727.0,71720.0,0.0014]
[1773552116539,0.08092774,71726.0,71721.0,0.0014]
[1773552116837,0.08092774,71726.0,71722.0,0.0014]
[1773552117042,0.08092774,71726.0,71723.0,0.0014]
[1773552118154,0.08092774,71726.0,71714.0,0.041826]
[1773552118348,0.08092774,71726.0,71715.0,0.0014]
[1773552124662,0.08092774,71726.0,71715.0,0.043225]
[1773552126363,0.12274674,71726.0,71715.0,0.0014]
[1773552126563,0.08092774,71725.0,71700.0,0.05]
[1773552126760,0.08092774,71717.0,71706.0,0.04183]
[1773552127064,0.08092774,71717.0,71707.0,0.0014]
[1773552127256,0.08092774,71717.0,71708.0,0.0014]
[1773552127457,0.08092774,71717.0,71709.0,0.0014]
[1773552127757,0.08092774,71717.0,71710.0,0.0014]
[1773552128061,0.08092774,71717.0,71711.0,0.0014]
[1773552128260,0.08092774,71717.0,71706.0,0.04183]
[1773552128447,0.08092774,71717.0,71707.0,0.0014]
[1773552128960,0.08092774,71717.0,71688.0,0.1117]
[1773552128961,0.08092774,71704.0,71680.0,0.08750912]
[1773552129156,0.08092774,71704.0,71682.0,0.0014]
[1773552129668,0.08092774,71704.0,71680.0,0.08750912]
[1773552129853,0.08092774,71704.0,71683.0,0.0014]
[1773552130059,0.08092774,71704.0,71692.0,0.041838]
[1773552130259,0.08092774,71704.0,71693.0,0.0014]
[1773552130460,0.08092774,71704.0,71694.0,0.0014]
[1773552130657,0.08092774,71698.0,71680.0,0.08750912]
[1773552130860,0.12276274,71698.0,71682.0,0.0014]
[1773552131071,0.08092774,71697.0,71685.0,0.041843]
[1773552131257,0.08092774,71697.0,71682.0,0.0014]
[1773552131571,0.08092774,71697.0,71685.0,0.041843]
[1773552131758,0.08092774,71697.0,71684.0,0.041843]
[1773552132067,0.08092774,71697.0,71685.0,0.0014]
[1773552132752,0.08092774,71697.0,71686.0,0.0014]
[1773552132952,0.08092774,71697.0,71670.0,0.08750912]
[1773552133157,0.08092774,71697.0,71687.0,0.0014]
[1773552133364,0.08092774,71697.0,71688.0,0.0014]
[1773552133668,0.08092774,71697.0,71689.0,0.0014]
[1773552138178,0.08092774,71697.0,71685.0,0.041842]
[1773552138470,0.08092774,71697.0,71686.0,0.0014]
[1773552139869,0.12276474,71697.0,71686.0,0.0014]
[1773552140065,0.08092774,71696.0,71686.0,0.0014]
[1773552140569,0.08092774,71694.0,71687.0,0.0014]
[1773552140963,0.08092774,71694.0,71688.0,0.0014]
[1773552141160,0.08092774,71694.0,71681.0,0.0008771]
[1773552141355,0.08092774,71702.0,71689.0,0.04184]
[1773552141559,0.08212229,71707.0,71689.0,0.0014]
[1773552141759,0.08212229,71707.0,71687.0,0.041842]
[1773552141954,0.08212229,71707.0,71688.0,0.0014]
[1773552142358,0.08212229,71707.0,71689.0,0.0014]
[1773552143470,0.08212229,71700.0,71689.0,0.0014]
[1773552143772,0.12395729,71700.0,71689.0,0.0014]
[1773552143968,0.08212229,71699.0,71689.0,0.0014]
[1773552145672,0.08212229,71699.0,71688.0,0.0014]
[1773552146375,0.08212229,71697.0,71689.0,0.0028]
[1773552146568,0.08212229,71697.0,71690.0,0.0014]
[1773552146769,0.0014,71708.0,71688.0,0.0014]
[1773552146770,0.041838,71693.0,71688.0,0.0014]
[1773552146964,0.08212229,71692.0,71688.0,0.0014]
[1773552147164,0.08212229,71692.0,71685.0,0.0014]
[1773552147363,0.08212229,71692.0,71681.0,0.041845]
[1773552147565,0.08212229,71692.0,71682.0,0.0014]
[1773552147770,0.08212229,71690.0,71682.0,0.0014]
[1773552147964,0.08212229,71690.0,71683.0,0.0028]
[1773552148967,0.00010479,71691.0,71683.0,0.0028]
[1773552149565,0.00010479,71691.0,71683.0,0.044644]
[1773552151870,0.08212229,71704.0,71682.0,0.0014]
[1773552152175,0.12395629,71701.0,71690.0,0.08750912]
[1773552152573,0.12395629,71701.0,71690.0,0.08890912]
[1773552152769,0.12395629,71701.0,71690.0,0.0014]
[1773552153975,9.688e-05,71700.0,71690.0,0.0014]
[1773552154167,0.93585118,71739.0,71690.0,0.08890912]
[1773552154472,0.08212229,71720.0,71700.0,0.08750912]
[1773552154771,0.08212229,71718.0,71706.0,0.0028]
[1773552154976,0.08212229,71718.0,71706.0,0.044631]
[1773552155776,0.12394629,71718.0,71706.0,0.0028]
[1773552156078,0.08212229,71717.0,71706.0,0.0028]
[1773552156579,0.08212229,71713.0,71701.0,0.0014]
[1773552157376,0.041825,71716.0,71702.0,0.041833]
[1773552157579,0.041826,71715.0,71702.0,0.041833]
[1773552157878,0.12394829,71714.0,71701.0,0.0014]
[1773552159575,0.08212229,71713.0,71701.0,0.0014]
[1773552163381,0.08212229,71725.0,71701.0,0.08565711]
[1773552163589,0.08212229,71719.0,71706.0,0.04183]
[1773552163786,0.08212229,71719.0,71704.0,0.041832]
[1773552164692,0.08212229,71715.0,71701.0,0.0014]
[1773552165280,0.12394829,71715.0,71701.0,0.0014]
[1773552165480,0.08212229,71714.0,71701.0,0.0014]
[1773552166188,0.08212229,71714.0,71701.0,0.043233]
[1773552166787,0.08212229,71714.0,71702.0,0.0014]
[1773552167485,0.08212229,71714.0,71703.0,0.0014]
[1773552167788,0.0014,71724.0,71702.0,0.041833]
[1773552167789,0.041825,71716.0,71702.0,0.041833]
[1773552167990,0.041825,71716.0,71700.0,0.08756221]
[1773552167991,0.041824,71719.0,71700.0,0.08756221]
[1773552168185,0.041824,71718.0,71704.0,0.041831]
[1773552168489,0.0014,71724.0,71704.0,0.041831]
[1773552168490,0.12394729,71717.0,71704.0,0.041831]
[1773552168692,0.08212229,71716.0,71705.0,0.0014]
[1773552169088,0.08212229,71716.0,71702.0,0.0014]